Cogmind - Beta 10.2 @@@ ROGUE MODE // 2022.01.08 @ 20:06:57 Player: TLFP Result: Destroyed by G-47 Trooper with Particle Gun Performance ------------- Evolutions (3) 1500 Regions Visited (9) 1800 Robots Destroyed (63) 315 Value Destroyed (2308) 2308 Prototype IDs (3) 60 Alien Tech Used (0) 0 Bonus (633) 633 TOTAL SCORE: 6616 Bonus ------- High Alert Combat Kills 94 Follower Combat Kills 539 Cogmind --------- Core Integrity 0/700 Matter 239/300 Energy 81/100 System Corruption 19% Temperature Cool (9) Movement Core (650) Ox12 Location -7/Lower Caves Parts ------- > --- POWER (1) -------- (None) > --- PROPULSION (3) --- Armored Huge Wheel > --- UTILITY (7) ------ High-capacity Storage Unit Advanced Signal Interpreter Long-range Terrain Scanner Advanced Targeting Computer Weapon Cycler System Backup Module > --- WEAPON (2) ------- Chainsword > --- INVENTORY (12) --- Antimatter Reactor Antimatter Reactor Light Treads Compact Matter Pod (0) Makeshift Terrain Scanner System Shield High-powered Electrolaser Advanced Assault Cannon Gauss Cannon Shock Bomb Launcher Peak State ------------ > --- POWER ------------ Nuclear Core > --- PROPULSION ------- Light Treads Heavy Treads > --- UTILITY ---------- High-capacity Storage Unit Advanced Signal Interpreter Long-range Terrain Scanner Advanced Targeting Computer Weapon Cycler Layered Light Armor Plating Layered Light Armor Plating > --- WEAPON ----------- High-powered Electrolaser Chainsword > --- INVENTORY -------- Cooled Deuterium Engine Antimatter Reactor Antimatter Reactor Light Treads Armored Huge Wheel System Shield System Backup Module High-powered Electrolaser Advanced Assault Cannon Gauss Cannon Shock Bomb Launcher [Rating: 53] Favorites ----------- Power Light Ion Engine Engine Light Ion Engine Power Core Nuclear Core Propulsion Light Treads Treads Light Treads Leg Aluminum Leg Wheel Wheel Hover Unit Airjet Flight Unit Xenon Bombardment Thruster Utility Small Storage Unit Device Weapon Cycler Storage Small Storage Unit Processor Advanced Targeting Computer Hackware Hacking Suite Protection Layered Light Armor Plating Weapon Assault Rifle Energy Gun Heavy Laser Energy Cannon Improved EM Pulse Cannon Ballistic Gun Assault Rifle Ballistic Cannon Gauss Cannon Launcher Mini Grenade Launcher Slashing Weapon Chainsword Build | -11 -10 -10 -10 -9 -8 -7 -7 -7 -7 ------- Run | Scr Mat Min Exi Min Mat Fac Was Fac Low Slots Evolved 6 | . . . . . 4 2 . . . Power . | . . . . . . . . . . Propulsion 1 | . . . . . 1 . . . . Utility 5 | . . . . . 3 2 . . . Weapon . | . . . . . . . . . . Parts Attached 101 | . 2 3 3 . 31 29 9 16 8 Power 14 | . . 1 1 . 5 4 1 1 1 Engine 11 | . . 1 1 . 3 4 1 . 1 Core 3 | . . . . . 2 . . 1 . Reactor . | . . . . . . . . . . Propulsion 23 | . 2 . 1 . 10 4 1 4 1 Treads 15 | . 1 . 1 . 7 2 1 3 . Leg 1 | . . . . . . 1 . . . Wheel 4 | . 1 . . . 2 . . . 1 Hover 2 | . . . . . 1 1 . . . Flight 1 | . . . . . . . . 1 . Utility 33 | . . . 1 . 8 10 2 7 5 Device 10 | . . . . . . 4 . 2 4 Storage 3 | . . . 1 . . 1 . 1 . Processor 4 | . . . . . 1 3 . . . Hackware 4 | . . . . . 2 1 . 1 . Protection 12 | . . . . . 5 1 2 3 1 Artifact . | . . . . . . . . . . Weapon 31 | . . 2 . . 8 11 5 4 1 Energy Gun 7 | . . . . . 2 2 1 2 . Energy Cannon 5 | . . . . . 1 4 . . . Ballistic Gun 5 | . . 2 . . . 2 . . 1 Ballistic Cannon 9 | . . . . . 5 1 2 1 . Launcher 4 | . . . . . . 2 2 . . Special Weapon . | . . . . . . . . . . Impact Weapon . | . . . . . . . . . . Slashing Weapon 1 | . . . . . . . . 1 . Piercing Weapon . | . . . . . . . . . . Special Melee Weapon . | . . . . . . . . . . Unidentified Prototypes 3 | . . . . . . . 1 1 1 Parts Lost 50 | . . 5 . . 14 13 6 5 7 Power 9 | . . 2 . . 3 1 1 1 1 Propulsion 11 | . . 1 . . 4 2 1 2 1 Utility 16 | . . . . . 4 5 3 1 3 Weapon 14 | . . 2 . . 3 5 1 1 2 Highest Loss Streak 9 | . . 3 . . 9 6 4 2 4 Average Slot Usage (%) 69 | . 85 76 62 100 74 43 55 82 81 Engine 4 | . 14 9 1 14 2 3 3 . 6 Core 1 | . . . . . 2 . . 6 . Treads 11 | . 13 14 15 28 13 3 9 10 7 Wheel 3 | . 9 9 . . 3 . . . 6 Device 3 | . . . . . . 4 3 10 15 Storage 10 | . 14 14 16 28 17 1 4 6 7 Processor 5 | . . . . . 3 6 15 15 15 Hackware 3 | . . . . . 8 7 . 3 . Protection 4 | . . . . . 8 1 5 13 6 Energy Gun 3 | . 28 . . . 6 . 1 4 2 Energy Cannon 1 | . . . . . . 4 . . . Ballistic Gun 9 | . . 27 28 28 . 2 3 . 2 Ballistic Cannon 2 | . . . . . 6 3 . . . Slashing Weapon 1 | . . . . . . . . 5 7 Naked Turns . | . . . . . . . . . . Heaviest Build 61 | 9 9 10 28 28 59 31 36 60 61 Greatest Support 90 | 20 20 20 40 40 62 40 70 90 28 Greatest Overweight (x) 11 | . . . 1 . 11 8 . 2 3 Average Overweight (x) . | . . . . . 1 2 . . 1 Largest Inventory Capacity 12 | . 6 6 12 12 12 6 6 12 12 Average Capacity 8 | . 6 6 6 12 11 4 5 11 12 Most Carried 12 | . 6 6 6 11 12 5 6 12 12 Average Carried 7 | . 6 5 5 8 10 3 3 9 11 Final Capacity 12 | 6 6 6 12 12 4 6 4 12 12 Final Carried 12 | 6 6 6 4 11 4 4 3 12 10 Class Distribution -------------------- 90% | Mutant 7% | Scavenger-Mutant Dominant Class ---------------- Mutant | -10/Materials Mutant | -10/Mines Mutant | -10/Exiles Mutant | -9/Mines Mutant | -8/Materials Mutant | -7/Factory Mutant | -7/Waste Mutant | -7/Factory Mutant | -7/Lower Caves Resources | -11 -10 -10 -10 -9 -8 -7 -7 -7 -7 ----------- Run | Scr Mat Min Exi Min Mat Fac Was Fac Low Matter Collected 2462 | 189 20 145 34 . 855 360 391 382 86 Remotely . | . . . . . . . . . . Salvage Created 2501 | . 58 257 . . 785 495 495 223 188 Parts 97 | . 7 8 . . 41 20 6 7 8 Haulers Intercepted . | . . . . . . . . . . Recyclers Shooed 1 | . . . . . . . . 1 . Parts Field Recycled . | . . . . . . . . . . Retrieved Matter . | . . . . . . . . . . Parts Self-Destructed 7 | . . . . . . . . . 7 Prevented . | . . . . . . . . . . Kills | -11 -10 -10 -10 -9 -8 -7 -7 -7 -7 ------- Run | Scr Mat Min Exi Min Mat Fac Was Fac Low Combat Hostiles Destroyed 52 | . 3 7 . . 19 11 2 4 6 Melee 7 | . . . . . . . . 3 4 Guns 21 | . 3 7 . . 5 4 . . 2 Cannons 17 | . . . . . 14 3 . . . AOE 7 | . . . . . . 4 2 1 . Classes Destroyed 12 | . 1 2 . . 5 3 1 . . Worker 1 | . . . . . 1 . . . . Builder 1 | . . 1 . . . . . . . Recycler 2 | . . . . . 1 1 . . . Operator 5 | . . . . . 2 2 . 1 . Watcher 2 | . . . . . . 1 . 1 . Swarmer 17 | . 3 3 . . 4 3 . . 4 Grunt 20 | . . 4 . . 10 3 . 1 2 Brawler 3 | . . . . . . 2 . 1 . Sentry 7 | . . . . . 4 2 . 1 . Hunter 2 | . . . . . 1 . . 1 . Programmer 1 | . . . . . . 1 . . . Compactor 2 | . . . . . . . 2 . . Best Kill Streak 8 | . 3 3 . . 5 8 1 1 4 Combat Bots Only 5 | . 3 3 . . 5 5 1 1 4 Max Kills in Single Turn 3 | . 1 1 . . 1 3 1 1 1 Gunslinging . | . . . . . . . . . . Exploded 3 | . . . . . . 3 1 1 . Melee 1 | . . . . . . . . 1 1 Uniques/NPCs Destroyed . | . . . . . . . . . . Combat | -11 -10 -10 -10 -9 -8 -7 -7 -7 -7 -------- Run | Scr Mat Min Exi Min Mat Fac Was Fac Low Damage Taken 6706 | . 120 598 . . 2041 1209 705 1289 744 Core 1141 | . 27 169 . . 242 253 178 222 50 Absorbed by Shields . | . . . . . . . . . . Core Remaining (%) 59 | 100 . . . 21 56 . . . . Volleys Fired 207 | . 7 40 . . 84 39 16 11 10 Largest 2 | . 2 2 . . 2 2 2 2 1 Hottest 144 | . 80 80 . . 144 144 87 78 70 Shots Fired 336 | . 14 64 . . 152 57 25 13 11 Gun 180 | . 14 64 . . 50 29 8 4 11 Cannon 132 | . . . . . 102 22 2 6 . Launcher 24 | . . . . . . 6 15 3 . Special . | . . . . . . . . . . Kinetic 221 | . . 59 . . 92 44 10 6 10 Thermal 86 | . 14 5 . . 60 2 . 4 1 Explosive 24 | . . . . . . 6 15 3 . Electromagnetic 5 | . . . . . . 5 . . . Robot Hit Streak 26 | . 3 8 . . 8 26 13 10 5 Robot Miss Streak 5 | . 5 3 . . 4 3 5 2 3 Penetration Max 1 | . . . . . 1 1 . . . Secondary Targets 1 | . . 1 . . . . . . . Max Gunslinging Chain 1 | . . 1 . . . . . . . Shots Hit Robots 252 | . 5 41 . . 88 49 24 26 19 Core Hits 139 | . 3 15 . . 35 48 11 11 16 Critical Hits 5 | . . . . . 2 1 . 1 1 Critical Kills 3 | . . . . . 1 1 . . 1 Critical Parts Destroyed 2 | . . . . . 1 . . 1 . Melee Attacks 35 | . . . . . . . . 23 12 Impact . | . . . . . . . . . . Slashing 35 | . . . . . . . . 23 12 Piercing . | . . . . . . . . . . Sneak Attacks 2 | . . . . . . . . 2 . Combat Hostiles . | . . . . . . . . . . Follow-up Attacks . | . . . . . . . . . . Damage Inflicted 7507 | . 44 458 . . 2153 1811 1609 934 498 Guns 2245 | . 44 458 . . 611 691 248 24 169 Cannons 2309 | . . . . . 1536 579 57 137 . Explosions 1918 | . . . . . . 541 1304 73 . Melee 1029 | . . . . . . . . 700 329 Ramming 6 | . . . . . 6 . . . . Kinetic 3587 | . . 446 . . 1382 1148 305 137 169 Thermal 956 | . 44 12 . . 765 111 . 24 . Explosive 1807 | . . . . . . 430 1304 73 . Electromagnetic 122 | . . . . . . 122 . . . Impact . | . . . . . . . . . . Slashing 1029 | . . . . . . . . 700 329 Piercing . | . . . . . . . . . . Highest Corruption 19 | . . . . . . 15 15 19 19 Average Corruption 14 | . . . . . . 6 15 16 19 Corruption Purged . | . . . . . . . . . . Effects 114 | . . . . . . 21 17 54 22 Message Errors 22 | . . . . . . 4 4 11 3 Matter Fused 23 | . . . . . . 4 3 11 5 Heat Flow Errors 14 | . . . . . . 1 1 12 . Energy Discharges 8 | . . . . . . 3 2 2 1 Parts Rejected 2 | . . . . . . . 1 . 1 Data Loss (minor) 5 | . . . . . . 2 . 3 . Data Loss (major) 3 | . . . . . . . . 2 1 Misfires 2 | . . . . . . . . 1 1 Alerts 1 | . . . . . . . . . 1 Misdirections 14 | . . . . . . 2 1 7 4 Targeting Errors 16 | . . . . . . 4 3 4 5 Weapon Failures 4 | . . . . . . 1 2 1 . Overload Shots . | . . . . . . . . . . Overflow Damage 160 | . . . . . 32 75 . 53 . Projectiles 58 | . . . . . 32 26 . . . Explosions 49 | . . . . . . 49 . . . Melee 53 | . . . . . . . . 53 . Knockbacks 15 | . . . . . 14 1 . . . Impact . | . . . . . . . . . . Kinetic 13 | . . . . . 12 1 . . . Secondary 2 | . . . . . 2 . . . . Self-Inflicted Damage 556 | . . . . . 1 221 334 . . Shots 12 | . . . . . . 3 9 . . Rammed 3 | . . . . . 3 . . . . Targets Rammed 3 | . . . . . 3 . . . . Kicked . | . . . . . . . . . . Crushed . | . . . . . . . . . . Highest Temperature 513 | . 108 36 . . 513 183 95 324 49 Average Temperature 132 | . 50 13 . . 165 47 36 128 28 Received Heat Transfer 1587 | . . 195 . . 756 198 . 366 72 Effects 23 | . . . . . 20 . . 3 . Shutdowns 4 | . . . . . 4 . . . . Energy Bleed 3 | . . . . . 3 . . . . Interference 6 | . . . . . 3 . . 3 . Matter Decay 1 | . . . . . 1 . . . . Short Circuit 1 | . . . . . 1 . . . . Damage (minor) 2 | . . . . . 2 . . . . Damage (major) 6 | . . . . . 6 . . . . Siege Activations . | . . . . . . . . . . Robots Corrupted . | . . . . . . . . . . Combat Hostiles . | . . . . . . . . . . Parts Fried 1 | . . . . . . 1 . . . Impact Corruptions . | . . . . . . . . . . Robots Melted . | . . . . . . . . . . Combat Hostiles . | . . . . . . . . . . Parts Melted 4 | . 1 . . . 2 . . 1 . Heat Transferred 1543 | . 100 25 . . 1331 50 . 37 . Parts Sabotaged . | . . . . . . . . . . Parts Stolen . | . . . . . . . . . . Parts Stripped . | . . . . . . . . . . Power Chain Reactions . | . . . . . . . . . . Missiles Intercepted . | . . . . . . . . . . Alert | -11 -10 -10 -10 -9 -8 -7 -7 -7 -7 ------- Run | Scr Mat Min Exi Min Mat Fac Was Fac Low Peak Influence 633 | . 70 82 . . 633 477 150 565 . Initial 294 | . . 27 . . . 294 96 86 . Average 210 | . 57 54 . . 287 305 119 264 . Maximum Alert Level 2 | . . . . . 2 2 . 2 . Low Security (%) 50 | . 100 100 . 100 17 9 100 56 . Level 1 37 | . . . . . 72 79 . 2 . Level 2 12 | . . . . . 10 10 . 41 . Level 3 . | . . . . . . . . . . Level 4 . | . . . . . . . . . . Level 5 . | . . . . . . . . . . High Security . | . . . . . . . . . . Max Security . | . . . . . . . . . . Squads Dispatched 19 | . 1 . . 1 6 4 . 7 . Investigation 6 | . . . . 1 3 . . 2 . Extermination 2 | . . . . . . 1 . 1 . Reinforcement 8 | . 1 . . . 2 3 . 2 . Assault 2 | . . . . . 1 . . 1 . Garrison 1 | . . . . . . . . 1 . Intercept . | . . . . . . . . . . Construction Impeded 1 | . . . . . . 1 . . . Haulers Reinforced . | . . . . . . . . . . Stealth | -11 -10 -10 -10 -9 -8 -7 -7 -7 -7 --------- Run | Scr Mat Min Exi Min Mat Fac Was Fac Low Distress Signals 7 | . 1 . . . 5 . . 1 . Communications Jammed . | . . . . . . . . . . Distress Signals . | . . . . . . . . . . Times Spotted 144 | . 4 7 . . 61 25 5 29 13 Peak Tracking Total 8 | . 4 3 . . 8 5 3 8 4 Tactical Retreats 13 | . . . . . 7 2 1 1 2 Traps | -11 -10 -10 -10 -9 -8 -7 -7 -7 -7 ------- Run | Scr Mat Min Exi Min Mat Fac Was Fac Low Traps Triggered 12 | . . . . . 8 4 . . . Indirectly . | . . . . . . . . . . Trap Hack Attempts . | . . . . . . . . . . Triggered . | . . . . . . . . . . Disarmed . | . . . . . . . . . . Reprogrammed . | . . . . . . . . . . Reused . | . . . . . . . . . . Traps Extracted . | . . . . . . . . . . Installed . | . . . . . . . . . . Triggered . | . . . . . . . . . . Machines | -11 -10 -10 -10 -9 -8 -7 -7 -7 -7 ---------- Run | Scr Mat Min Exi Min Mat Fac Was Fac Low Machines Disabled 12 | . . 1 . . 4 6 . 1 . Max in Single Turn 5 | . . 1 . . 1 5 . 1 . Garrison Access 3 | . . . . . 1 1 . 1 . Machines Sabotaged . | . . . . . . . . . . Garrisons Compromised . | . . . . . . . . . . Overloaded Fab Kills . | . . . . . . . . . . Fab Network Shutdowns . | . . . . . . . . . . Hacking | -11 -10 -10 -10 -9 -8 -7 -7 -7 -7 --------- Run | Scr Mat Min Exi Min Mat Fac Was Fac Low Machines Accessed 25 | . 1 1 1 1 6 8 . 6 1 Terminals 14 | . 1 1 . . 5 4 . 2 1 Fabricators 1 | . . . . . . . . 1 . Repair Stations 1 | . . . . . . 1 . . . Recycling Units 4 | . . . . . . 2 . 2 . Scanalyzers 1 | . . . . . 1 . . . . Garrison Access 2 | . . . . . . 1 . 1 . Total Hacks 58 | . 1 3 1 1 19 15 . 17 1 Successful 31 | . . 2 1 1 13 6 . 7 1 Failed 26 | . 1 1 . . 5 9 . 10 . Catastrophic 5 | . 1 1 . . . 2 . 1 . Database Lockouts 1 | . . . . . 1 . . . . Manual 33 | . 1 2 . . 15 5 . 10 . Terminals 35 | . 1 3 . . 14 9 . 7 1 Fabricators 3 | . . . . . . . . 3 . Repair Stations 1 | . . . . . . 1 . . . Recycling Units 7 | . . . . . . 4 . 3 . Scanalyzers 5 | . . . . . 5 . . . . Garrison Access 5 | . . . . . . 1 . 4 . Terminal Hacks 10 | . . 2 1 1 2 2 . 1 1 Record 2 | . . . 1 . . . . . 1 Part Schematic 4 | . . . . . 1 2 . 1 . Open Door 1 | . . . . 1 . . . . . Branch Access Points 1 | . . 1 . . . . . . . Recycling Unit Index 1 | . . . . . 1 . . . . Zone Layout 1 | . . 1 . . . . . . . Fabricator Hacks 1 | . . . . . . . . 1 . Build 1 | . . . . . . . . 1 . Repair Station Hacks . | . . . . . . . . . . Recycling Unit Hacks 2 | . . . . . . 1 . 1 . Retrieve Components 2 | . . . . . . 1 . 1 . Scanalyzer 4 | . . . . . 4 . . . . Insert Component 2 | . . . . . 2 . . . . Analyze 2 | . . . . . 2 . . . . Garrison Access Hacks 1 | . . . . . . 1 . . . Seal Access 1 | . . . . . . 1 . . . Unauthorized Hacks 13 | . . . . . 7 2 . 4 . Terminals 9 | . . . . . 6 1 . 2 . Assimilate 1 | . . . . . 1 . . . . Botnet 5 | . . . . . 4 . . 1 . Operators 3 | . . . . . 1 1 . 1 . Fabricators . | . . . . . . . . . . Repair Stations . | . . . . . . . . . . Recycling Units 1 | . . . . . . 1 . . . Reject 1 | . . . . . . 1 . . . Scanalyzers 1 | . . . . . 1 . . . . Extract 1 | . . . . . 1 . . . . Garrison Access 2 | . . . . . . . . 2 . Reprogram 1 | . . . . . . . . 1 . Jam 1 | . . . . . . . . 1 . Data Cores Recovered 1 | . . . . . . 1 . . . Used 1 | . . . . . . 1 . . . Hacking Detections 20 | . 1 1 . . 6 7 . 5 . Full Trace Events 2 | . . 1 . . . . . 1 . Feedback Events . | . . . . . . . . . . Feedback Blocked . | . . . . . . . . . . Robot Schematics Acquired . | . . . . . . . . . . Robots Built . | . . . . . . . . . . Matter . | . . . . . . . . . . Time . | . . . . . . . . . . Total Robot Build Rating . | . . . . . . . . . . Part Schematics Acquired 14 | . . . . . 11 2 . 1 . Parts Built 2 | . . . . . . . . 2 . Matter 234 | . . . . . . . . 234 . Time 117 | . . . . . . . . 117 . Total Part Build Rating 14 | . . . . . . . . 14 . Parts Repaired . | . . . . . . . . . . Time . | . . . . . . . . . . Parts Recycled . | . . . . . . . . . . Recycled Matter . | . . . . . . . . . . Retrieved Matter . | . . . . . . . . . . Retrieved Components 2 | . . . . . . 1 . 1 . Parts Scanalyzed 2 | . . . . . 2 . . . . Part Schematics Acquired 2 | . . . . . 2 . . . . Parts Damaged . | . . . . . . . . . . Bothacking | -11 -10 -10 -10 -9 -8 -7 -7 -7 -7 ------------ Run | Scr Mat Min Exi Min Mat Fac Was Fac Low Used RIF Installer . | . . . . . . . . . . Robots Hacked . | . . . . . . . . . . Non-combat . | . . . . . . . . . . Combat . | . . . . . . . . . . Robot Hacks Applied . | . . . . . . . . . . Relay Couplers Released 2 | . . . . . 2 . . . . Machine Destruction 2 | . . . . . 2 . . . . Robots Rewired . | . . . . . . . . . . Allies Hacked . | . . . . . . . . . . Hacks Repelled . | . . . . . . . . . . Allies | -11 -10 -10 -10 -9 -8 -7 -7 -7 -7 -------- Run | Scr Mat Min Exi Min Mat Fac Was Fac Low Total Allies 7 | . . 1 . 3 1 . . 2 . Largest Group 3 | . . 1 . 3 3 . . 2 . Highest-Rated Group 40 | . . 31 . 40 40 . . 32 . Highest-Rated Ally 31 | . . 31 . 16 16 . . 16 . Total Orders . | . . . . . . . . . . Ally Attacks 116 | . . . . . 43 . . 73 . Total Damage 1287 | . . . . . 529 . . 758 . Kills 17 | . . . . . 9 . . 8 . Allies Corrupted . | . . . . . . . . . . Allies Melted . | . . . . . . . . . . Intel | -11 -10 -10 -10 -9 -8 -7 -7 -7 -7 ------- Run | Scr Mat Min Exi Min Mat Fac Was Fac Low Robot Analysis Total . | . . . . . . . . . . Derelict Logs Recovered 4 | . . 1 . 2 . . . . 1 Drone Launches . | . . . . . . . . . . Drone Recoveries . | . . . . . . . . . . Exploration | -11 -10 -10 -10 -9 -8 -7 -7 -7 -7 ------------- Run | Scr Mat Min Exi Min Mat Fac Was Fac Low Turns Passed 6814 | . 155 1267 503 225 1517 1325 327 1058 437 Spaces Moved 3927 | 1 140 727 312 136 796 621 258 617 319 Core 624 | . . . . . 135 304 132 53 . Treads 2265 | . 11 727 312 136 304 167 126 472 10 Legs 26 | 1 9 . . . . 16 . . . Wheels 786 | . 120 . . . 357 . . . 309 Hover 134 | . . . . . . 134 . . . Flight 92 | . . . . . . . . 92 . Fastest Speed 40 | 120 80 160 160 160 50 50 50 40 110 Average Speed 148 | 120 88 160 160 160 149 189 103 132 116 Slowest Speed 600 | 120 160 160 180 160 600 450 160 200 220 Overloaded Moves . | . . . . . . . . . . Propulsion Burnouts . | . . . . . . . . . . Robots Hopped . | . . . . . . . . . . Cave-ins Triggered . | . . . . . . . . . . Exploration Rate (%) 47 | 2 32 98 75 38 65 21 82 17 47 Regions Visited 9 Branch Regions 4 Pre-discovered Areas 2 | . . . 1 1 . . . . . Known Exits Taken 2 | . . . . . 1 . . 1 . Unknown Exits Taken 5 | 1 1 1 1 1 . . . . . Scrap Searched 3 | . . 1 . 1 . . . . 1 Spaces Dug 1 | . . . . . . . . 1 . Terrain Destroyed 248 | . . . . . 43 82 95 28 . Melee 1 | . . . . . . . . 1 . Projectile 46 | . . . . . 43 1 . 2 . AOE 201 | . . . . . . 81 95 25 . Terrain Rammed . | . . . . . . . . . . Walls Destroyed . | . . . . . . . . . . Machines Disabled . | . . . . . . . . . . Actions | -11 -10 -10 -10 -9 -8 -7 -7 -7 -7 --------- Run | Scr Mat Min Exi Min Mat Fac Was Fac Low Total 4512 | . 155 771 314 144 962 708 290 812 356 Wait 148 | . 7 . . 2 17 . . 118 4 Move 3919 | . 139 726 311 135 795 621 257 616 319 Hop . | . . . . . . . . . . Pick Up 71 | . . 2 . 7 17 14 6 22 3 Fast Attach 26 | . . 1 1 . 11 8 . 3 2 Attach 57 | . . 2 2 . 14 18 8 9 4 Detach 5 | . . . . . . 4 1 . . Swap 18 | . 2 . . . 6 3 1 4 2 Drop 23 | . . . . . 15 1 1 6 . Fire 207 | . 7 40 . . 84 39 16 11 10 Melee 35 | . . . . . . . . 23 12 Ram 2 | . . . . . 2 . . . . Kick . | . . . . . . . . . . Crush 1 | . . . . . 1 . . . . Escape Stasis . | . . . . . . . . . . Rewire . | . . . . . . . . . . Trap . | . . . . . . . . . . Miscellaneous . | . . . . . . . . . . Route ------- -11/Scrapyard -10/Materials -10/Mines (discovered 3 exits: [*Mat x2] / *Exi) -10/Exiles -9/Mines -8/Materials (discovered 3 exits: *Fac x3) -7/Factory -7/Waste -7/Factory (discovered 2 exits: *Fac / *Low) -7/Lower Caves History --------- Turn | Location | Event 1 | -11/Scrapyard | Discovered new exit (range 0) 1 | -11/Scrapyard | Entered Materials 144 | -10/Materials | Discovered new exit (range 8) 156 | -10/Materials | Entered Mines 204 | -10/Mines | Lost 3 parts (1p2w) 301 | -10/Mines | Build established: Mutant 311 | -10/Mines | Discovered new exit (range 9) 316 | -10/Mines | Learned Materials interactive machine intel 351 | -10/Mines | Discovered new exit (range 10) 551 | -10/Mines | Core integrity fell below 50% 698 | -10/Mines | Received a Mining Laser from a helpful Derelict 1417 | -10/Mines | Deemed a non-threat by the Exiles lab entrance 1417 | -10/Mines | Discovered new exit (range 5) 1423 | -10/Mines | Entered Exiles 1467 | -10/Exiles | Met 8R-AWN 1489 | -10/Exiles | Met EX-HEX 1551 | -10/Exiles | Met EX-DEC 1608 | -10/Exiles | Visited The Gauntlet 1788 | -10/Exiles | Learned location of Zion (-6) 1912 | -10/Exiles | Discovered new exit (range 11) 1926 | -10/Exiles | Entered Mines 1940 | -9/Mines | Assisted by bots powering up and referring to "LRC-V3" 1959 | -9/Mines | Learned location of Recycling (-7) 1988 | -9/Mines | Met a Derelict shopkeep closing up shop 2132 | -9/Mines | Discovered new exit (range 9) 2151 | -9/Mines | Entered Materials 2151 | -8/Materials | Accompanied by 3 allies 2151 | -8/Materials | Evolved 4 slots: Propulsion x1, Utility x3 2152 | -8/Materials | Identified exit to Factory 2153 | -8/Materials | Loaded intel: 19 interactive machine locations 2546 | -8/Materials | Discovered exit to Factory (range 6) 3585 | -8/Materials | Central database locked down 3651 | -8/Materials | Discovered exit to Factory (range 5) 3668 | -8/Materials | Entered Factory 3668 | -7/Factory | Evolved 2 slots: Utility x2 3677 | -7/Factory | Lost 9 parts (1p3n3u2w) 4674 | -7/Factory | Lost 5 parts (1p1n1u2w) 4745 | -7/Factory | System corruption reached 10% 4787 | -7/Factory | Lost 6 parts (1n4u1w) 4892 | -7/Factory | Discovered new exit (range 15) 4993 | -7/Factory | Sucked down chute 4993 | -7/Factory | Entered Waste 5070 | -7/Waste | Spotted C-40 Crusher 5072 | -7/Waste | Build established: Scavenger-Mutant 5098 | -7/Waste | Destroyed C-40 Crusher 5111 | -7/Waste | Spotted C-40 Crusher 5157 | -7/Waste | Crushed by Compactor (1 part destroyed, 1 dropped) 5160 | -7/Waste | Crushed by Compactor (1 part destroyed, 2 dropped) 5179 | -7/Waste | Spotted C-40 Crusher 5183 | -7/Waste | Destroyed C-40 Crusher 5214 | -7/Waste | Crushed by Compactor (0 parts destroyed, 1 dropped) 5217 | -7/Waste | Crushed by Compactor (0 parts destroyed, 1 dropped) 5220 | -7/Waste | Crushed by Compactor (1 part destroyed, 1 dropped) 5221 | -7/Waste | Core integrity fell below 50% 5223 | -7/Waste | Crushed by Compactor (1 part destroyed) 5226 | -7/Waste | Crushed by Compactor (1 part destroyed) 5252 | -7/Waste | Spotted C-40 Crusher 5267 | -7/Waste | Spotted C-40 Crusher 5270 | -7/Waste | Lost 4 parts (3u1w) 5274 | -7/Waste | Spotted C-40 Crusher 5292 | -7/Waste | Discovered new exit (range 10) 5320 | -7/Waste | Identified exit to Factory 5320 | -7/Waste | Entered Factory 5375 | -7/Factory | Discovered new exit (range 15) 5383 | -7/Factory | Identified exit to Factory 5442 | -7/Factory | Build established: Mutant 5859 | -7/Factory | Garrison activated, responded to threat 6120 | -7/Factory | Fabricated Antimatter Reactor (x2) 6120 | -7/Factory | First assault squad dispatched 6205 | -7/Factory | Core integrity fell below 20% 6362 | -7/Factory | Discovered new exit (range 10) 6376 | -7/Factory | Identified exit to Lower Caves 6378 | -7/Factory | Entered Lower Caves 6378 | -7/Lower Caves | Spotted B-75 Beast 6611 | -7/Lower Caves | Lost 3 parts (2u1w) 6620 | -7/Lower Caves | Learned Factory garrison access intel 6815 | -7/Lower Caves | Destroyed by G-47 Trooper with Particle Gun Last Messages --------------- Data stored: Factory garrison access intel. 06637_ Connecting with Outpost Terminal... >>Query(Status Report 013H) UNIDENTI-- 06654_ Acquired Mak. Shrapnel Gun. 06660_ System corrupted: Matter fused (-7). 06681_ MP-MX0(k) destroyed. 06698_ Acquired 21 matter. 06714_ System corrupted: Matter fused (-6). 06730_ System corrupted: IFF burst signal emitted. 06745_ System corrupted: FCS attempts to trigger Mak. Shrapnel Gun. 06745_ System corrupted: Mak. Shrapnel Gun targeting data glitched. 06745_ System corrupted: Mak. Shrapnel Gun misfires. 06798_ System corrupted: Mak. Shrapnel Gun targeting data glitched. 06800_ G-47 Trooper destroyed. 06810_ Cld. Deuterium Engine destroyed. 06810_ System corrupted: Mak. Shrapnel Gun targeting data glitched. 06812_ Lgt. Treads destroyed. 06813_ Mak. Shrapnel Gun destroyed. 06814_ Imp. Heat Sink destroyed. Map ----- +----------------------------------------------------+ | ????????????????##??# %??# ????# #### ### | | ???????????????## #?# ## ##### #??#### | | ???????????????# ?# "" ## #???#?## | | ???????????????# % ## "" " ## #??????# | | ??????#????????#% # """ " " ## #?#????## | | ???????????????## """ ## #???????## | | ???????????????## % "" "" ## #??##????## | | ?????#?????????# " """" #??#?#????## | | ?????#???????#?# %% "" #??????#?#?# | | ???????????#????# ######??#???#?? | | ????????????????# % ## #???#?????????? | | ????????????????# % #### #####????#???? | | ?????#??????????# ## ###### ###?#???????#??? | | ????????????????# ## ########???????? ????? | | ?????#????#??#### ## #??????? ? ?????? | | ????????????## # # #???##????? ??? ?? | | ????????????# ##???#?#???? ???? ? # | | ??????#?????# ##??#???????? ?????? #? | | ????????????# #####! ##????????#?????????#??? | | ????????????# #???#% #?????#???????????#???? | | ????????????# ##?? # #??????????????#???? ?? | | ????????????# ### # ###????????????????#????? | | ??#?????????## ## #####?????#? ????? ?????# | | ?????#???????# ## !##??????? ??????????? | | ???????????#?# ###### ##lg% #??? ????? ???????? | | ?????????????# ##???##@ # ##??????????????????? | | ???????????#?# #??## #?????????????? ????? | | ?????????#?#?# #### ###???????? ?????????#? | | ??#??????????# #### ###??????????????????? | | ?????????????# #??## #?????????????#????? | | ?????????????# ##### ## ####??????????????????? | | ?????????????# ## ##??#???#??????????????? | | ?????????????# # #?#???????#????????????? | | ???#?????????# # ##?????#?#????? ?? ? ???? | | ????##?#???#?# # ## # #??????????????????????? | | ?????????????## ###### #?????????????????????#? | | ??????????????#####????####??????????????????????? | | ???????????????????????????????????#?????????????? | | ??????????#???????#??????????????????????????????? | | ??????????????????#???????????#??#????????#??????? | | ?????????????????????#???????????????????????????? | | ?????????#????????????#????????#?????????????????? | | ?????????#??##?????????????#?#???????????????????? | | ????????#??#?????????????????????????????????????? | | ??????????????????????????????????????#??????????? | | ????????????##????#????#?????????????????????????? | | ????????????????????????????#????????????????????? | | ????#??????????????#????????????#????????????????? | | ?????#??????????????????????????#????????????????? | | ?????????????????????????????????????????????????? | +----------------------------------------------------+ Best States ------------- Heat Dissipation 48 Energy Generation 18 Energy Capacity 310 Matter Stores 300 Matter Capacity 300 Sight Range 16 Robot Scan Range 16 Terrain Scan Range 24 Terrain Scan Density 10 Armor Coverage 450 Propulsion Shielding 66 Weapon Cycling 15 Evasion (%) 62 Targeting Accuracy 8 Target Analysis 5 Core Analysis 6 Recoil Reduction 3 Energy Filtering 30 Offensive Hacking 20 Defensive Hacking 10 Item Schematics ----------------- Hrd. Medium Armor Plating | -8/Materials | Scanalyzed Remote Datajack | -8/Materials | Scanalyzed Hardlight Generator | -8/Materials | Extracted Imp. Targeting Computer | -8/Materials | Extracted Hpw. Shotgun | -8/Materials | Extracted Ion Cannon | -8/Materials | Extracted Imp. Aluminum Leg | -8/Materials | Extracted Maul | -8/Materials | Extracted Com. Battery | -8/Materials | Extracted Imp. ECM Suite | -8/Materials | Extracted Adv. Sensor Array | -8/Materials | Hacked Mic. Fission Core | -7/Factory | Hacked Imp. System Shield | -7/Factory | Hacked Lrn. Terrain Scanner | -7/Factory | Hacked Robot Schematics ------------------ None Fabricated ------------ Antimatter Reactor | x2 | -7/Factory | Preloaded Alien Tech Used ----------------- None Achievements -------------- None Challenges ------------ None Game ------ Seed ParticleShieldBroadsword Manual? 0 Play Time 00:53:23 Cumulative 81.0 hours Start 2022.01.08 @ 19:04:23 End 2022.01.08 @ 20:06:57 Sessions 2 Manual Loads 0 Difficulty Rogue Special Mode None Game No. 54 Rogue 17 Adventurer 32 Explorer 5 Win Type - Total 1 Types 1/0/0/0/0/0/0/0/0 Lore% 51 Gallery% 58 Achievement% 48 Wizard Run 0 Options --------- ASCII 0 Keyboard 0 Movement Mouse Keybinds 0 Fullscreen 1 Font 18/SmallcapsGlow Map View 76x50 Tactical HUD 1 Map Filters NONE Filters NONE Steam 1 RUN: 1037afd0-388a-4503-9645-2f23ec32cd2f